[Event "*** Titled Tuesday Blitz"]
[Site "Chess.com"]
[Date "2019.04.02"]
[Round "5"]
[White "vovachesss"]
[Black "You_are_not_free"]
[Result "1-0"]
[WhiteElo "2520"]
[BlackElo "2336"]
[TimeControl "180+2"]
[EndTime "15:05:13 PDT"]
[Termination "vovachesss won by checkmate"]

1. Nf3 {[%clk 0:03:01.9]} 1... c5 {[%clk 0:02:59.6]} 2. b3 {[%clk 0:03:01.8]}
2... d5 {[%clk 0:02:58.4]} 3. Bb2 {[%clk 0:03:03]} 3... Nc6 {[%clk 0:02:59.3]}
4. e3 {[%clk 0:03:04.4]} 4... Nf6 {[%clk 0:02:58.3]} 5. d4 {[%clk 0:03:05.1]}
5... e6 {[%clk 0:02:55.7]} 6. Nbd2 {[%clk 0:03:06.6]} 6... b6 {[%clk 0:02:55.4]}
7. Bd3 {[%clk 0:03:03.7]} 7... Be7 {[%clk 0:02:53.4]} 8. O-O {[%clk 0:03:04.7]}
8... O-O {[%clk 0:02:54.1]} 9. e4 {[%clk 0:03:04.7]} 9... dxe4 {[%clk
0:02:46.9]} 10. Nxe4 {[%clk 0:03:05.6]} 10... cxd4 {[%clk 0:02:33]} 11. Nxf6+
{[%clk 0:02:50.9]} 11... Bxf6 {[%clk 0:02:32.8]} 12. Be4 {[%clk 0:02:52.6]}
12... Bb7 {[%clk 0:02:30.4]} 13. Nxd4 {[%clk 0:02:43.7]} 13... Nxd4 {[%clk
0:02:23.1]} 14. Bxb7 {[%clk 0:02:43.4]} 14... Rb8 {[%clk 0:02:20.3]} 15. Be4
{[%clk 0:02:42.1]} 15... Nf3+ {[%clk 0:02:12.3]} 16. Qxf3 {[%clk 0:02:39.1]}
16... Bxb2 {[%clk 0:02:13.2]} 17. Rad1 {[%clk 0:02:40.5]} 17... Qf6 {[%clk
0:02:08.6]} 18. Rd7 {[%clk 0:02:38.1]} 18... Rfd8 {[%clk 0:02:06.7]} 19. Qxf6
{[%clk 0:02:19.9]} 19... Bxf6 {[%clk 0:02:03.8]} 20. Rxa7 {[%clk 0:02:21.8]}
20... Rd2 {[%clk 0:01:58.4]} 21. g3 {[%clk 0:02:15.8]} 21... Bd4 {[%clk
0:01:57.5]} 22. Kg2 {[%clk 0:02:15.4]} 22... g6 {[%clk 0:01:56.5]} 23. Rd7
{[%clk 0:02:13.7]} 23... b5 {[%clk 0:01:47.5]} 24. Bd3 {[%clk 0:02:04]} 24... e5
{[%clk 0:01:42.2]} 25. g4 {[%clk 0:01:48.7]} 25... h6 {[%clk 0:01:32.9]} 26. Kf3
{[%clk 0:01:49]} 26... Ra8 {[%clk 0:01:24.6]} 27. Bxb5 {[%clk 0:01:44.5]} 27...
Rxa2 {[%clk 0:01:25.5]} 28. Bd3 {[%clk 0:01:41]} 28... Kg7 {[%clk 0:01:16.5]}
29. Ke4 {[%clk 0:01:34.6]} 29... Kf6 {[%clk 0:01:14.5]} 30. f4 {[%clk
0:01:32.5]} 30... Ke6 {[%clk 0:01:13.7]} 31. fxe5 {[%clk 0:01:01.6]} 31... Kxd7
{[%clk 0:01:05.1]} 32. Kxd4 {[%clk 0:00:55.9]} 32... Ke7 {[%clk 0:01:00.3]} 33.
h3 {[%clk 0:00:51.8]} 33... Raxc2 {[%clk 0:00:58.2]} 34. Ke3 {[%clk 0:00:42]}
34... Rb2 {[%clk 0:00:50.2]} 35. Bc4 {[%clk 0:00:42.9]} 35... Rh2 {[%clk
0:00:31.8]} 36. Rxf7+ {[%clk 0:00:43.6]} 36... Ke8 {[%clk 0:00:32.9]} 37. Rf6
{[%clk 0:00:42.2]} 37... Rxh3+ {[%clk 0:00:32.9]} 38. Kd4 {[%clk 0:00:42.6]}
38... g5 {[%clk 0:00:31.3]} 39. Kd5 {[%clk 0:00:37.9]} 39... Ke7 {[%clk
0:00:24.1]} 40. Re6+ {[%clk 0:00:37.5]} 40... Kf7 {[%clk 0:00:24]} 41. Rf6+
{[%clk 0:00:36]} 41... Ke7 {[%clk 0:00:24.9]} 42. Kc5 {[%clk 0:00:34.9]} 42...
Rc2 {[%clk 0:00:21.7]} 43. Rf7+ {[%clk 0:00:35.7]} 43... Ke8 {[%clk 0:00:22.6]}
44. Rh7 {[%clk 0:00:33.6]} 44... Rxb3 {[%clk 0:00:23]} 45. e6 {[%clk 0:00:26.4]}
45... Rbc3 {[%clk 0:00:23.6]} 46. Kd6 {[%clk 0:00:27.7]} 46... Rd2+ {[%clk
0:00:23.9]} 47. Bd5 {[%clk 0:00:28]} 47... Rf2 {[%clk 0:00:22.4]} 48. Re7+
{[%clk 0:00:11.3]} 48... Kf8 {[%clk 0:00:17.6]} 49. Ra7 {[%clk 0:00:08.7]} 49...
Rc8 {[%clk 0:00:16.3]} 50. e7+ {[%clk 0:00:08.1]} 50... Ke8 {[%clk 0:00:17.6]}
51. Be6 {[%clk 0:00:03.1]} 51... Rd2+ {[%clk 0:00:17.6]} 52. Ke5 {[%clk
0:00:04.7]} 52... Rb8 {[%clk 0:00:14.8]} 53. Kf6 {[%clk 0:00:05.7]} 53... Rf2+
{[%clk 0:00:11.3]} 54. Kg7 {[%clk 0:00:07.1]} 54... Rf4 {[%clk 0:00:12]} 55. Bf5
{[%clk 0:00:08.1]} 55... Rf2 {[%clk 0:00:12.5]} 56. Bg6+ {[%clk 0:00:09]} 56...
Rf7+ {[%clk 0:00:12.3]} 57. Bxf7# {[%clk 0:00:10.9]} 1-0

[Event "*** Titled Tuesday Blitz"]
[Site "Chess.com"]
[Date "2019.04.02"]
[Round "5"]
[White "maciek_92"]
[Black "DrVitman"]
[Result "1/2-1/2"]
[WhiteElo "2676"]
[BlackElo "2637"]
[TimeControl "180+2"]
[EndTime "15:05:19 PDT"]
[Termination "Game drawn by repetition"]

1. e4 {[%clk 0:03:01.9]} 1... c5 {[%clk 0:02:59.9]} 2. Nf3 {[%clk 0:03:02.5]}
2... Nc6 {[%clk 0:03:00.7]} 3. d4 {[%clk 0:03:03.2]} 3... cxd4 {[%clk
0:03:02.6]} 4. Nxd4 {[%clk 0:03:04.7]} 4... e5 {[%clk 0:03:03.9]} 5. Nb5 {[%clk
0:03:05.2]} 5... a6 {[%clk 0:03:05.4]} 6. N5c3 {[%clk 0:03:03.7]} 6... Bc5
{[%clk 0:02:51.4]} 7. Bc4 {[%clk 0:03:00.8]} 7... d6 {[%clk 0:02:48.6]} 8. O-O
{[%clk 0:02:56.2]} 8... b5 {[%clk 0:02:46.3]} 9. Bd5 {[%clk 0:02:56.7]} 9...
Nge7 {[%clk 0:02:46]} 10. Nd2 {[%clk 0:02:51.1]} 10... O-O {[%clk 0:02:42.6]}
11. Nb3 {[%clk 0:02:46.5]} 11... Bb6 {[%clk 0:02:38.9]} 12. a4 {[%clk
0:02:45.7]} 12... b4 {[%clk 0:02:37.5]} 13. a5 {[%clk 0:02:46.3]} 13... Ba7
{[%clk 0:02:28.6]} 14. Bxc6 {[%clk 0:02:45.3]} 14... Nxc6 {[%clk 0:02:28.9]} 15.
Nd5 {[%clk 0:02:46.8]} 15... Be6 {[%clk 0:02:25.7]} 16. Be3 {[%clk 0:02:46.5]}
16... Bxe3 {[%clk 0:02:20.3]} 17. fxe3 {[%clk 0:02:48.1]} 17... Rb8 {[%clk
0:02:18]} 18. c4 {[%clk 0:02:28.2]} 18... bxc3 {[%clk 0:02:17.2]} 19. bxc3
{[%clk 0:02:30.1]} 19... Bxd5 {[%clk 0:01:54.1]} 20. exd5 {[%clk 0:02:23.2]}
20... Ne7 {[%clk 0:01:47.8]} 21. e4 {[%clk 0:02:09.1]} 21... Qc7 {[%clk
0:01:46.3]} 22. Rf3 {[%clk 0:02:03.1]} 22... Qc4 {[%clk 0:01:41.1]} 23. Nd2
{[%clk 0:02:03.6]} 23... Qc5+ {[%clk 0:01:35.5]} 24. Kh1 {[%clk 0:02:04.4]}
24... Rb2 {[%clk 0:01:34.4]} 25. h3 {[%clk 0:01:50.2]} 25... Ng6 {[%clk
0:01:15.8]} 26. Nb3 {[%clk 0:01:17.3]} 26... Qb5 {[%clk 0:01:04.5]} 27. Nd2
{[%clk 0:01:18.5]} 27... Nf4 {[%clk 0:00:55.9]} 28. Kh2 {[%clk 0:01:10.5]} 28...
Qc5 {[%clk 0:00:30.2]} 29. g3 {[%clk 0:00:56.2]} 29... Ng6 {[%clk 0:00:27.3]}
30. h4 {[%clk 0:00:57.5]} 30... Ne7 {[%clk 0:00:27.5]} 31. Kh3 {[%clk
0:00:55.6]} 31... Qc8+ {[%clk 0:00:25.9]} 32. Kg2 {[%clk 0:00:50.4]} 32... f5
{[%clk 0:00:26.3]} 33. Qc1 {[%clk 0:00:41]} 33... Rb8 {[%clk 0:00:26.9]} 34. c4
{[%clk 0:00:37.4]} 34... fxe4 {[%clk 0:00:27.3]} 35. Rxf8+ {[%clk 0:00:38]}
35... Qxf8 {[%clk 0:00:29.2]} 36. Nxe4 {[%clk 0:00:39.4]} 36... Nf5 {[%clk
0:00:25.8]} 37. Qd2 {[%clk 0:00:31.8]} 37... Rb3 {[%clk 0:00:24.7]} 38. Re1
{[%clk 0:00:17.4]} 38... Qb8 {[%clk 0:00:21.3]} 39. Re2 {[%clk 0:00:12.5]} 39...
Nd4 {[%clk 0:00:20.3]} 40. Rf2 {[%clk 0:00:13.3]} 40... h6 {[%clk 0:00:18.2]}
41. Nf6+ {[%clk 0:00:11.5]} 41... gxf6 {[%clk 0:00:15.5]} 42. Qxh6 {[%clk
0:00:13.1]} 42... f5 {[%clk 0:00:15]} 43. Qg6+ {[%clk 0:00:13.2]} 43... Kf8
{[%clk 0:00:16.4]} 44. Qf6+ {[%clk 0:00:14.3]} 44... Ke8 {[%clk 0:00:17.5]} 45.
Qh8+ {[%clk 0:00:15.5]} 45... Kd7 {[%clk 0:00:17.9]} 46. Qg7+ {[%clk 0:00:17]}
46... Kd8 {[%clk 0:00:18.8]} 47. h5 {[%clk 0:00:18.2]} 47... Rb2 {[%clk
0:00:16.6]} 48. Qg8+ {[%clk 0:00:15.4]} 48... Kc7 {[%clk 0:00:15.6]} 49. Qf7+
{[%clk 0:00:15.6]} 49... Kc8 {[%clk 0:00:15.9]} 50. Qf8+ {[%clk 0:00:16.6]}
50... Kc7 {[%clk 0:00:17.1]} 51. Qe7+ {[%clk 0:00:17.6]} 51... Kc8 {[%clk
0:00:18.3]} 52. Qe8+ {[%clk 0:00:18.9]} 52... Kc7 {[%clk 0:00:19.4]} 53. Qf7+
{[%clk 0:00:20.2]} 53... Kc8 {[%clk 0:00:20.4]} 54. Qg8+ {[%clk 0:00:21.6]}
54... Kc7 {[%clk 0:00:21.7]} 55. Qg7+ {[%clk 0:00:22.8]} 55... Kc8 {[%clk
0:00:22.7]} 56. Qg8+ {[%clk 0:00:16]} 56... Kc7 {[%clk 0:00:23.5]} 57. Qg7+
{[%clk 0:00:17.1]} 57... Kc8 {[%clk 0:00:24.4]} 58. Qh8+ {[%clk 0:00:17.8]}
58... Kc7 {[%clk 0:00:24.9]} 59. Qh7+ {[%clk 0:00:18.6]} 59... Kc8 {[%clk
0:00:25.8]} 60. Qh8+ {[%clk 0:00:17.6]} 60... Kc7 {[%clk 0:00:26.5]} 61. Qg7+
{[%clk 0:00:17.7]} 61... Kc8 {[%clk 0:00:27]} 1/2-1/2

[Event "*** Titled Tuesday Blitz"]
[Site "Chess.com"]
[Date "2019.04.02"]
[Round "5"]
[White "mlchen"]
[Black "Vamostodorecto"]
[Result "1-0"]
[WhiteElo "2427"]
[BlackElo "2496"]
[TimeControl "180+2"]
[EndTime "15:05:45 PDT"]
[Termination "mlchen won by resignation"]

1. e4 {[%clk 0:03:01.9]} 1... e5 {[%clk 0:03:00.6]} 2. Nf3 {[%clk 0:03:02.6]}
2... Nc6 {[%clk 0:03:02.2]} 3. Bb5 {[%clk 0:03:04]} 3... a6 {[%clk 0:03:03.2]}
4. Ba4 {[%clk 0:03:05.2]} 4... Nf6 {[%clk 0:03:04.3]} 5. d3 {[%clk 0:03:06.6]}
5... b5 {[%clk 0:03:04.7]} 6. Bb3 {[%clk 0:03:07.2]} 6... Bb7 {[%clk 0:03:06.6]}
7. O-O {[%clk 0:03:06.9]} 7... Bc5 {[%clk 0:03:07.7]} 8. c3 {[%clk 0:03:07.5]}
8... O-O {[%clk 0:03:03.8]} 9. d4 {[%clk 0:03:05.1]} 9... Bd6 {[%clk 0:03:02.6]}
10. Bg5 {[%clk 0:03:04.5]} 10... h6 {[%clk 0:03:02]} 11. Bh4 {[%clk 0:03:04.4]}
11... Be7 {[%clk 0:02:56.5]} 12. Re1 {[%clk 0:02:52.6]} 12... d6 {[%clk
0:02:48.1]} 13. Nbd2 {[%clk 0:02:45.9]} 13... g5 {[%clk 0:02:47.1]} 14. Bg3
{[%clk 0:02:43.5]} 14... Nh5 {[%clk 0:02:43.7]} 15. Nxe5 {[%clk 0:02:38.5]}
15... dxe5 {[%clk 0:01:41.7]} 16. Qxh5 {[%clk 0:02:38.4]} 16... Kg7 {[%clk
0:01:39.4]} 17. d5 {[%clk 0:02:26.2]} 17... Na5 {[%clk 0:01:36]} 18. Bxe5+
{[%clk 0:02:22.8]} 18... f6 {[%clk 0:01:37.6]} 19. Bd4 {[%clk 0:02:22.2]} 19...
Nxb3 {[%clk 0:01:34.6]} 20. axb3 {[%clk 0:02:23.7]} 20... c5 {[%clk 0:01:31]}
21. dxc6 {[%clk 0:02:17.2]} 21... Bxc6 {[%clk 0:01:31.3]} 22. Nf1 {[%clk
0:02:16.4]} 22... Be8 {[%clk 0:01:12.5]} 23. Qf3 {[%clk 0:02:15.8]} 23... Bg6
{[%clk 0:01:14.4]} 24. Ne3 {[%clk 0:02:11.7]} 24... Bd6 {[%clk 0:01:13.7]} 25.
Nd5 {[%clk 0:02:07]} 25... Be5 {[%clk 0:01:12.1]} 26. Rad1 {[%clk 0:02:04.9]}
26... Qe8 {[%clk 0:01:10.2]} 27. Bc5 {[%clk 0:01:43.1]} 27... Rf7 {[%clk
0:00:59.7]} 28. Qe3 {[%clk 0:01:37.7]} 28... Bh5 {[%clk 0:00:37.9]} 29. Rd3
{[%clk 0:01:34.3]} 29... Rc8 {[%clk 0:00:34.3]} 30. b4 {[%clk 0:01:32.6]} 30...
Bg6 {[%clk 0:00:26.1]} 31. Rdd1 {[%clk 0:01:14.4]} 31... Qe6 {[%clk 0:00:24.7]}
32. Bd4 {[%clk 0:00:49.9]} 32... h5 {[%clk 0:00:24.8]} 33. Bxe5 {[%clk
0:00:49.9]} 33... Qxe5 {[%clk 0:00:26.7]} 34. Qd4 {[%clk 0:00:46.9]} 34... Qe6
{[%clk 0:00:25.5]} 35. Qb6 {[%clk 0:00:39.6]} 35... Rc6 {[%clk 0:00:25.5]} 36.
Qd4 {[%clk 0:00:37.5]} 36... Rc4 {[%clk 0:00:26.3]} 37. Qb6 {[%clk 0:00:33.1]}
37... Qxb6 {[%clk 0:00:20.6]} 38. Nxb6 {[%clk 0:00:34]} 38... Rxe4 {[%clk
0:00:22.5]} 39. Rxe4 {[%clk 0:00:32.6]} 39... Bxe4 {[%clk 0:00:24.4]} 40. Nd7
{[%clk 0:00:31.4]} 40... Bb7 {[%clk 0:00:15.1]} 41. Nc5 {[%clk 0:00:32.1]} 41...
Bc8 {[%clk 0:00:15.6]} 42. Rd8 {[%clk 0:00:29.8]} 42... Rc7 {[%clk 0:00:16.1]}
43. f3 {[%clk 0:00:29.1]} 43... Kf7 {[%clk 0:00:16.4]} 44. Rh8 {[%clk
0:00:27.3]} 44... Kg6 {[%clk 0:00:15.3]} 45. Kf2 {[%clk 0:00:27.1]} 45... h4
{[%clk 0:00:15.4]} 46. Rf8 {[%clk 0:00:24.2]} 46... Kg7 {[%clk 0:00:13.8]} 47.
Rd8 {[%clk 0:00:23.4]} 47... h3 {[%clk 0:00:13.1]} 48. gxh3 {[%clk 0:00:22.5]}
48... Kg6 {[%clk 0:00:12.9]} 49. Kg3 {[%clk 0:00:19.5]} 49... Rc6 {[%clk
0:00:12.6]} 50. h4 {[%clk 0:00:19.9]} 50... gxh4+ {[%clk 0:00:13.4]} 51. Kxh4
{[%clk 0:00:21.2]} 51... Bf5 {[%clk 0:00:14.3]} 52. Kg3 {[%clk 0:00:22]} 52...
a5 {[%clk 0:00:10.5]} 53. h4 {[%clk 0:00:21.7]} 53... axb4 {[%clk 0:00:09.1]}
54. cxb4 {[%clk 0:00:23.2]} 54... Rb6 {[%clk 0:00:07.2]} 55. Kf4 {[%clk
0:00:22.8]} 55... Bc2 {[%clk 0:00:07.6]} 56. Rg8+ {[%clk 0:00:22.9]} 56... Kh5
{[%clk 0:00:07.6]} 57. Nd7 {[%clk 0:00:19.2]} 57... Rd6 {[%clk 0:00:07.2]} 58.
Nf8 {[%clk 0:00:20.2]} 58... Rd4+ {[%clk 0:00:07.7]} 59. Kg3 {[%clk 0:00:21.3]}
59... Kh6 {[%clk 0:00:04]} 60. Rh8+ {[%clk 0:00:22]} 60... Kg7 {[%clk
0:00:04.7]} 61. Ne6+ {[%clk 0:00:23.5]} 61... Kxh8 {[%clk 0:00:04.6]} 62. Nxd4
{[%clk 0:00:25]} 62... Bb1 {[%clk 0:00:05.6]} 63. Nxb5 {[%clk 0:00:25.4]} 63...
Bd3 {[%clk 0:00:05.9]} 64. Nd6 {[%clk 0:00:25.9]} 64... Kg7 {[%clk 0:00:07.8]}
65. b5 {[%clk 0:00:27.2]} 65... Kf8 {[%clk 0:00:07.6]} 66. b6 {[%clk 0:00:28.3]}
1-0

[Event "*** Titled Tuesday Blitz"]
[Site "Chess.com"]
[Date "2019.04.02"]
[Round "5"]
[White "Yoshkinkot"]
[Black "IIIlllII1llIl"]
[Result "1-0"]
[WhiteElo "2560"]
[BlackElo "2780"]
[TimeControl "180+2"]
[EndTime "15:05:56 PDT"]
[Termination "Yoshkinkot won by resignation"]

1. e4 {[%clk 0:02:58.1]} 1... e5 {[%clk 0:03:00.8]} 2. Nf3 {[%clk 0:02:58]} 2...
Nc6 {[%clk 0:03:01.7]} 3. Bb5 {[%clk 0:02:58.4]} 3... Nf6 {[%clk 0:03:02.8]} 4.
d3 {[%clk 0:02:57.3]} 4... d6 {[%clk 0:02:58.3]} 5. O-O {[%clk 0:02:57.9]} 5...
Bd7 {[%clk 0:02:53]} 6. c4 {[%clk 0:02:50.7]} 6... Be7 {[%clk 0:02:48.3]} 7. Nc3
{[%clk 0:02:47.3]} 7... O-O {[%clk 0:02:47.9]} 8. Re1 {[%clk 0:02:47]} 8... Bg4
{[%clk 0:02:44.7]} 9. Bxc6 {[%clk 0:02:44.9]} 9... bxc6 {[%clk 0:02:45]} 10. h3
{[%clk 0:02:45.4]} 10... Bh5 {[%clk 0:02:35.1]} 11. Qe2 {[%clk 0:02:39.1]} 11...
Qd7 {[%clk 0:02:13.6]} 12. Qe3 {[%clk 0:02:36]} 12... h6 {[%clk 0:02:03.7]} 13.
b3 {[%clk 0:02:35.1]} 13... a5 {[%clk 0:02:00]} 14. Bb2 {[%clk 0:02:31.1]} 14...
Qe6 {[%clk 0:01:37.3]} 15. Nh2 {[%clk 0:01:56.2]} 15... Bg6 {[%clk 0:01:21.9]}
16. Ne2 {[%clk 0:01:47.3]} 16... Nh5 {[%clk 0:01:16.3]} 17. g4 {[%clk
0:01:41.5]} 17... Bg5 {[%clk 0:01:15.1]} 18. Qf3 {[%clk 0:01:32.8]} 18... Nf4
{[%clk 0:01:11]} 19. Nxf4 {[%clk 0:01:25.3]} 19... Bxf4 {[%clk 0:01:11.1]} 20.
Nf1 {[%clk 0:01:25.5]} 20... a4 {[%clk 0:01:08.3]} 21. b4 {[%clk 0:01:25.4]}
21... a3 {[%clk 0:01:09]} 22. Bc3 {[%clk 0:01:25.5]} 22... h5 {[%clk 0:00:43.4]}
23. Ne3 {[%clk 0:01:19.8]} 23... hxg4 {[%clk 0:00:43.7]} 24. hxg4 {[%clk
0:01:20.2]} 24... f6 {[%clk 0:00:33.5]} 25. Kg2 {[%clk 0:01:19.3]} 25... Kf7
{[%clk 0:00:34.3]} 26. Nf5 {[%clk 0:01:14.1]} 26... Qd7 {[%clk 0:00:24.5]} 27.
d4 {[%clk 0:01:02.4]} 27... Bxf5 {[%clk 0:00:24.4]} 28. gxf5 {[%clk 0:00:58.5]}
28... Rh8 {[%clk 0:00:24.4]} 29. Rh1 {[%clk 0:00:58.4]} 29... Rag8 {[%clk
0:00:17.4]} 30. Qg4 {[%clk 0:00:56.2]} 30... g5 {[%clk 0:00:12.6]} 31. Rxh8
{[%clk 0:00:28.6]} 31... Rxh8 {[%clk 0:00:13.3]} 32. Rh1 {[%clk 0:00:30]} 32...
Qe8 {[%clk 0:00:12.6]} 33. Rh3 {[%clk 0:00:23.9]} 33... Kg7 {[%clk 0:00:11.2]}
34. d5 {[%clk 0:00:23.4]} 34... cxd5 {[%clk 0:00:10.9]} 35. cxd5 {[%clk
0:00:24.1]} 35... Rxh3 {[%clk 0:00:08.1]} 36. Qxh3 {[%clk 0:00:24.4]} 36... Qf7
{[%clk 0:00:07.3]} 37. Kf3 {[%clk 0:00:23.1]} 37... Qe8 {[%clk 0:00:07.6]} 38.
Kg2 {[%clk 0:00:20.4]} 38... Qf7 {[%clk 0:00:07.8]} 39. Kf3 {[%clk 0:00:21.3]}
39... Kg8 {[%clk 0:00:08.3]} 40. Kg2 {[%clk 0:00:21.6]} 40... Kg7 {[%clk
0:00:09.2]} 41. Be1 {[%clk 0:00:20.1]} 41... Qe8 {[%clk 0:00:08.8]} 42. Qxa3
{[%clk 0:00:20.9]} 42... Qh5 {[%clk 0:00:09.9]} 43. Qf3 {[%clk 0:00:21.6]} 43...
g4 {[%clk 0:00:10.8]} 44. Qd3 {[%clk 0:00:21.6]} 44... Qh2+ {[%clk 0:00:10.1]}
45. Kf1 {[%clk 0:00:22.9]} 45... Kh7 {[%clk 0:00:08.6]} 46. a4 {[%clk
0:00:21.6]} 46... Qh1+ {[%clk 0:00:05.8]} 47. Ke2 {[%clk 0:00:22.4]} 47... Qg2
{[%clk 0:00:07.3]} 48. Kd1 {[%clk 0:00:21.9]} 48... g3 {[%clk 0:00:07]} 49. fxg3
{[%clk 0:00:22.2]} 49... Bg5 {[%clk 0:00:08.3]} 50. Qe2 {[%clk 0:00:21.8]} 50...
Qh1 {[%clk 0:00:08.4]} 51. a5 {[%clk 0:00:22.9]} 51... Qg1 {[%clk 0:00:09.7]}
52. Qf2 {[%clk 0:00:23.1]} 52... Qh1 {[%clk 0:00:11]} 53. Qe2 {[%clk 0:00:21.6]}
53... Qg1 {[%clk 0:00:12.3]} 54. Kc2 {[%clk 0:00:22.6]} 54... Qd4 {[%clk
0:00:12.9]} 55. Bc3 {[%clk 0:00:23.5]} 55... Qg1 {[%clk 0:00:12.1]} 56. a6
{[%clk 0:00:20.4]} 56... Kg7 {[%clk 0:00:13]} 57. Qe1 {[%clk 0:00:16.6]} 57...
Qb6 {[%clk 0:00:13.4]} 58. Qe2 {[%clk 0:00:17.3]} 58... Kf8 {[%clk 0:00:12.4]}
59. Qc4 {[%clk 0:00:17.9]} 59... Be3 {[%clk 0:00:12.7]} 60. Kb3 {[%clk
0:00:18.9]} 60... Qb8 {[%clk 0:00:13]} 61. Qc6 {[%clk 0:00:20]} 61... Ke7 {[%clk
0:00:09.3]} 62. Qb7 {[%clk 0:00:20.3]} 62... Qa7 {[%clk 0:00:09]} 63. Qxa7
{[%clk 0:00:21.4]} 63... Bxa7 {[%clk 0:00:10.9]} 64. Kc4 {[%clk 0:00:23]} 64...
Kd7 {[%clk 0:00:11.2]} 65. Kb5 {[%clk 0:00:24.7]} 65... Bb6 {[%clk 0:00:12.2]}
66. Bd2 {[%clk 0:00:25.5]} 66... Bf2 {[%clk 0:00:10.6]} 67. g4 {[%clk
0:00:26.6]} 67... Kc8 {[%clk 0:00:11.6]} 68. g5 {[%clk 0:00:27.9]} 68... fxg5
{[%clk 0:00:11.9]} 69. Bxg5 {[%clk 0:00:29.8]} 69... Kd7 {[%clk 0:00:10.2]} 70.
f6 {[%clk 0:00:29.1]} 70... Ke8 {[%clk 0:00:11.6]} 71. Kc6 {[%clk 0:00:30.1]}
71... Bb6 {[%clk 0:00:12.7]} 72. b5 {[%clk 0:00:31.4]} 72... Kf7 {[%clk
0:00:13.3]} 73. Kb7 {[%clk 0:00:32.7]} 73... Kg6 {[%clk 0:00:13.8]} 74. a7
{[%clk 0:00:33.8]} 1-0

[Event "*** Titled Tuesday Blitz"]
[Site "Chess.com"]
[Date "2019.04.02"]
[Round "5"]
[White "Fandorine"]
[Black "RegZryt"]
[Result "1-0"]
[WhiteElo "2846"]
[BlackElo "2575"]
[TimeControl "180+2"]
[EndTime "15:06:02 PDT"]
[Termination "Fandorine won by resignation"]

1. e4 {[%clk 0:03:01.9]} 1... c5 {[%clk 0:03:00.5]} 2. Nf3 {[%clk 0:03:03.1]}
2... e6 {[%clk 0:03:01.6]} 3. Nc3 {[%clk 0:03:01.9]} 3... Nc6 {[%clk 0:03:01.7]}
4. Bb5 {[%clk 0:03:02.9]} 4... Nd4 {[%clk 0:03:01]} 5. Ba4 {[%clk 0:03:03.9]}
5... a6 {[%clk 0:02:55.1]} 6. Nxd4 {[%clk 0:03:04.1]} 6... cxd4 {[%clk 0:02:57]}
7. Ne2 {[%clk 0:03:05.7]} 7... Bc5 {[%clk 0:02:53.4]} 8. Bb3 {[%clk 0:03:05.3]}
8... Ne7 {[%clk 0:02:50.8]} 9. d3 {[%clk 0:03:06.1]} 9... b5 {[%clk 0:02:45.9]}
10. O-O {[%clk 0:03:07.2]} 10... Bb7 {[%clk 0:02:47.1]} 11. a4 {[%clk 0:03:07]}
11... d5 {[%clk 0:02:36.3]} 12. e5 {[%clk 0:03:03.5]} 12... Qc7 {[%clk 0:02:32]}
13. f4 {[%clk 0:03:00.4]} 13... Nf5 {[%clk 0:02:31.9]} 14. Kh1 {[%clk
0:03:01.9]} 14... h5 {[%clk 0:02:31.9]} 15. Qe1 {[%clk 0:03:01.8]} 15... Bc6
{[%clk 0:02:22.7]} 16. axb5 {[%clk 0:02:54.3]} 16... axb5 {[%clk 0:02:22.5]} 17.
Rxa8+ {[%clk 0:02:55.8]} 17... Bxa8 {[%clk 0:02:24.4]} 18. Bd2 {[%clk
0:02:57.5]} 18... Bc6 {[%clk 0:02:19.6]} 19. Ng3 {[%clk 0:02:57]} 19... Ne3
{[%clk 0:02:08.8]} 20. Bxe3 {[%clk 0:02:57.6]} 20... dxe3 {[%clk 0:02:10.7]} 21.
d4 {[%clk 0:02:59.2]} 21... Bxd4 {[%clk 0:02:07.9]} 22. Qb4 {[%clk 0:02:58]}
22... Bb6 {[%clk 0:02:05]} 23. f5 {[%clk 0:02:57.3]} 23... h4 {[%clk 0:01:56.1]}
24. Ne2 {[%clk 0:02:45.7]} 24... Qxe5 {[%clk 0:01:55.5]} 25. fxe6 {[%clk
0:02:39.9]} 25... Qxe6 {[%clk 0:01:36.3]} 26. Nf4 {[%clk 0:02:23.5]} 26... Qd7
{[%clk 0:00:45.4]} 27. h3 {[%clk 0:02:07]} 27... Rh6 {[%clk 0:00:45]} 28. Nd3
{[%clk 0:01:48.2]} 28... Rf6 {[%clk 0:00:39.4]} 29. Rxf6 {[%clk 0:01:43.6]}
29... gxf6 {[%clk 0:00:41.3]} 30. Qxh4 {[%clk 0:01:45]} 30... Qe6 {[%clk
0:00:36.7]} 31. Nf4 {[%clk 0:01:37.5]} 31... Qe5 {[%clk 0:00:32.1]} 32. Nd3
{[%clk 0:01:32.1]} 32... Qe6 {[%clk 0:00:24.6]} 33. Qh8+ {[%clk 0:01:23.1]}
33... Kd7 {[%clk 0:00:21]} 34. Qb8 {[%clk 0:01:23.6]} 34... Bc7 {[%clk
0:00:18.3]} 35. Qa7 {[%clk 0:00:56.9]} 35... e2 {[%clk 0:00:19.4]} 36. Qf2
{[%clk 0:00:52.7]} 36... Bd6 {[%clk 0:00:19]} 37. c3 {[%clk 0:00:51.9]} 37...
Ke7 {[%clk 0:00:20.1]} 38. Ne1 {[%clk 0:00:38.4]} 38... Qe5 {[%clk 0:00:20.8]}
39. Nf3 {[%clk 0:00:34.6]} 39... Qe4 {[%clk 0:00:21.6]} 40. Qe1 {[%clk
0:00:25.5]} 40... b4 {[%clk 0:00:22.8]} 41. Nd4 {[%clk 0:00:23.8]} 41... Bd7
{[%clk 0:00:22.9]} 42. Qxe2 {[%clk 0:00:19.5]} 42... bxc3 {[%clk 0:00:22.4]} 43.
bxc3 {[%clk 0:00:19.5]} 43... Qxe2 {[%clk 0:00:23.2]} 44. Nxe2 {[%clk
0:00:20.5]} 44... Be5 {[%clk 0:00:24.9]} 45. Bxd5 {[%clk 0:00:20.8]} 45... Kd6
{[%clk 0:00:24]} 46. Bxf7 {[%clk 0:00:18.5]} 46... Kc5 {[%clk 0:00:25.3]} 47. c4
{[%clk 0:00:11.4]} 47... Bf5 {[%clk 0:00:26.4]} 48. h4 {[%clk 0:00:06.2]} 48...
Bg4 {[%clk 0:00:26.6]} 49. Ng1 {[%clk 0:00:07.5]} 49... Bf4 {[%clk 0:00:22.9]}
50. Nf3 {[%clk 0:00:06.2]} 50... Bh6 {[%clk 0:00:21.6]} 51. Kg1 {[%clk 0:00:06]}
51... Bf5 {[%clk 0:00:18.6]} 52. Kf2 {[%clk 0:00:05.7]} 52... Bd3 {[%clk
0:00:20.2]} 53. Bd5 {[%clk 0:00:04.6]} 53... Bxc4 {[%clk 0:00:21.2]} 54. Bxc4
{[%clk 0:00:05.9]} 54... Kxc4 {[%clk 0:00:23.1]} 55. Kg3 {[%clk 0:00:07.4]}
55... Kd5 {[%clk 0:00:24.7]} 56. Kg4 {[%clk 0:00:08.5]} 56... Ke6 {[%clk
0:00:25.7]} 57. Nd4+ {[%clk 0:00:08.8]} 57... Kf7 {[%clk 0:00:26.2]} 58. Nf5
{[%clk 0:00:09.5]} 58... Bd2 {[%clk 0:00:24.9]} 59. Kf3 {[%clk 0:00:10.7]} 59...
Kg6 {[%clk 0:00:25.5]} 60. g4 {[%clk 0:00:11.9]} 60... Be1 {[%clk 0:00:26.4]}
61. Kg2 {[%clk 0:00:10.8]} 61... Bd2 {[%clk 0:00:26.7]} 62. Kg3 {[%clk
0:00:11.5]} 62... Be1+ {[%clk 0:00:27.9]} 63. Kh3 {[%clk 0:00:12.9]} 63... Kh7
{[%clk 0:00:27.7]} 64. h5 {[%clk 0:00:13.5]} 64... Kg8 {[%clk 0:00:27.6]} 65.
Kg2 {[%clk 0:00:14.7]} 65... Kf7 {[%clk 0:00:28.9]} 66. Kf3 {[%clk 0:00:16.6]}
66... Bd2 {[%clk 0:00:30.2]} 67. Ke4 {[%clk 0:00:18.5]} 67... Bg5 {[%clk
0:00:31.4]} 68. Kd5 {[%clk 0:00:19.5]} 68... Bd2 {[%clk 0:00:32.5]} 69. Kd6
{[%clk 0:00:20.7]} 69... Bf4+ {[%clk 0:00:33.5]} 70. Kd7 {[%clk 0:00:22.2]}
70... Bg5 {[%clk 0:00:35]} 71. Nd6+ {[%clk 0:00:23.4]} 71... Kg7 {[%clk
0:00:35.6]} 72. Ke6 {[%clk 0:00:23.1]} 72... Bh4 {[%clk 0:00:33.7]} 73. Nf5+
{[%clk 0:00:23.7]} 1-0